[Event "*** SCC Grand Prix: Titled Tuesday Blitz"]
[Site "Chess.com"]
[Date "2020.08.11"]
[Round "3"]
[White "Roza_Idrisova"]
[Black "Love_craft"]
[Result "0-1"]
[WhiteElo "2225"]
[BlackElo "2586"]
[TimeControl "180+1"]
[EndTime "10:29:53 PDT"]
[Termination "Love_craft won on time"]

1. d4 {[%clk 0:03:00.9]} 1... Nf6 {[%clk 0:03:00.2]} 2. Nf3 {[%clk 0:03:01]}
2... g6 {[%clk 0:03:00.4]} 3. c4 {[%clk 0:03:00.2]} 3... Bg7 {[%clk 0:03:00.8]}
4. Nc3 {[%clk 0:03:00.2]} 4... O-O {[%clk 0:03:01.7]} 5. e4 {[%clk 0:02:58.3]}
5... d6 {[%clk 0:03:02.6]} 6. Be2 {[%clk 0:02:58]} 6... Nbd7 {[%clk 0:03:03.5]}
7. O-O {[%clk 0:02:58]} 7... e5 {[%clk 0:03:04.4]} 8. Qc2 {[%clk 0:02:52.7]}
8... c6 {[%clk 0:03:03.1]} 9. Rd1 {[%clk 0:02:52.1]} 9... Qe7 {[%clk 0:03:03.2]}
10. d5 {[%clk 0:02:50.9]} 10... c5 {[%clk 0:03:03.5]} 11. h3 {[%clk 0:02:50]}
11... Ne8 {[%clk 0:03:03.4]} 12. a3 {[%clk 0:02:49.9]} 12... h6 {[%clk 0:03:02]}
13. b4 {[%clk 0:02:49.5]} 13... b6 {[%clk 0:02:59.4]} 14. Be3 {[%clk 0:02:48.9]}
14... f5 {[%clk 0:02:59.1]} 15. bxc5 {[%clk 0:02:43.9]} 15... bxc5 {[%clk
0:02:59.4]} 16. Rab1 {[%clk 0:02:24.2]} 16... f4 {[%clk 0:02:54.7]} 17. Bd2
{[%clk 0:02:24.3]} 17... g5 {[%clk 0:02:52.2]} 18. Nh2 {[%clk 0:02:23.8]} 18...
Ndf6 {[%clk 0:02:52.2]} 19. Qa4 {[%clk 0:02:10.2]} 19... Bd7 {[%clk 0:02:46.8]}
20. Qa6 {[%clk 0:02:06.8]} 20... h5 {[%clk 0:02:30.8]} 21. Rb7 {[%clk
0:02:04.2]} 21... Rf7 {[%clk 0:02:08.6]} 22. Rxa7 {[%clk 0:02:01.8]} 22... Rxa7
{[%clk 0:02:07.8]} 23. Qxa7 {[%clk 0:02:00.6]} 23... g4 {[%clk 0:02:08.7]} 24.
hxg4 {[%clk 0:01:59.3]} 24... hxg4 {[%clk 0:02:09.6]} 25. Rb1 {[%clk 0:01:40.4]}
25... g3 {[%clk 0:02:05.3]} 26. Nf3 {[%clk 0:01:30.4]} 26... Ng4 {[%clk
0:01:59.3]} 27. fxg3 {[%clk 0:01:24.4]} 27... fxg3 {[%clk 0:02:00.2]} 28. Rb7
{[%clk 0:01:12.3]} 28... Bh6 {[%clk 0:00:36.6]} 29. Bxh6 {[%clk 0:01:08.7]}
29... Nxh6 {[%clk 0:00:37.5]} 30. Nb5 {[%clk 0:00:30.2]} 30... Ng4 {[%clk
0:00:33.8]} 31. Qa5 {[%clk 0:00:17.8]} 31... Qf8 {[%clk 0:00:20.5]} 32. Qd2
{[%clk 0:00:14]} 32... Bxb5 {[%clk 0:00:17.8]} 33. Rxf7 {[%clk 0:00:12.1]} 33...
Qxf7 {[%clk 0:00:17.9]} 34. Qg5+ {[%clk 0:00:06.7]} 34... Ng7 {[%clk 0:00:08.5]}
35. Qxg4 {[%clk 0:00:05.1]} 35... Ba4 {[%clk 0:00:06.6]} 36. Qxg3 {[%clk
0:00:05]} 36... Bc2 {[%clk 0:00:06.6]} 37. Ng5 {[%clk 0:00:04.4]} 37... Qg6
{[%clk 0:00:05.6]} 38. Kf2 {[%clk 0:00:02.7]} 38... Bxe4 {[%clk 0:00:05.2]} 0-1

[Event "*** SCC Grand Prix: Titled Tuesday Blitz"]
[Site "Chess.com"]
[Date "2020.08.11"]
[Round "3"]
[White "MasterKroket"]
[Black "YoreDea"]
[Result "1-0"]
[WhiteElo "2419"]
[BlackElo "2615"]
[TimeControl "180+1"]
[EndTime "10:29:56 PDT"]
[Termination "MasterKroket won on time"]

1. d4 {[%clk 0:03:00.9]} 1... Nf6 {[%clk 0:02:55.7]} 2. c4 {[%clk 0:03:01.4]}
2... e6 {[%clk 0:02:55]} 3. Nf3 {[%clk 0:03:01.9]} 3... d5 {[%clk 0:02:54.7]} 4.
Nc3 {[%clk 0:03:01.8]} 4... c6 {[%clk 0:02:55.1]} 5. Bg5 {[%clk 0:03:01.3]} 5...
h6 {[%clk 0:02:53.3]} 6. Bxf6 {[%clk 0:03:01]} 6... Qxf6 {[%clk 0:02:52.8]} 7.
e3 {[%clk 0:03:01.6]} 7... Nd7 {[%clk 0:02:50.5]} 8. Rc1 {[%clk 0:03:01.1]} 8...
g6 {[%clk 0:02:49.5]} 9. Bd3 {[%clk 0:03:00.6]} 9... Bg7 {[%clk 0:02:47.4]} 10.
O-O {[%clk 0:02:59.4]} 10... O-O {[%clk 0:02:47.2]} 11. e4 {[%clk 0:02:59.7]}
11... dxc4 {[%clk 0:02:47.2]} 12. e5 {[%clk 0:02:53.4]} 12... Qe7 {[%clk
0:02:42.6]} 13. Bxc4 {[%clk 0:02:53.7]} 13... c5 {[%clk 0:02:34.7]} 14. Re1
{[%clk 0:02:39.1]} 14... cxd4 {[%clk 0:02:27.7]} 15. Qxd4 {[%clk 0:02:35.3]}
15... a6 {[%clk 0:02:13.7]} 16. Ne4 {[%clk 0:02:29.5]} 16... b5 {[%clk
0:02:07.6]} 17. Bb3 {[%clk 0:02:24.1]} 17... Rd8 {[%clk 0:00:57.8]} 18. Red1
{[%clk 0:02:10.8]} 18... Bb7 {[%clk 0:00:49.7]} 19. Rc7 {[%clk 0:01:43.8]} 19...
Bxe4 {[%clk 0:00:45.4]} 20. Qxe4 {[%clk 0:01:39.5]} 20... Qe8 {[%clk 0:00:22.1]}
21. h4 {[%clk 0:01:25.4]} 21... Nf8 {[%clk 0:00:17.9]} 22. Rd6 {[%clk
0:01:14.7]} 22... Rac8 {[%clk 0:00:12.9]} 23. Rxc8 {[%clk 0:01:08.9]} 23... Rxc8
{[%clk 0:00:13]} 24. Rxa6 {[%clk 0:00:56.1]} 24... Rc1+ {[%clk 0:00:12.7]} 25.
Kh2 {[%clk 0:00:56.8]} 25... Qb8 {[%clk 0:00:13.3]} 26. Rd6 {[%clk 0:00:43]}
26... Rc5 {[%clk 0:00:10.1]} 27. Qd4 {[%clk 0:00:39.6]} 27... Qc7 {[%clk
0:00:06.7]} 28. g3 {[%clk 0:00:34.5]} 28... Rc1 {[%clk 0:00:06.5]} 29. Qb6
{[%clk 0:00:23]} 29... Qc8 {[%clk 0:00:03.2]} 30. Rd8 {[%clk 0:00:21.6]} 30...
Qc5 {[%clk 0:00:02.6]} 31. Qxc5 {[%clk 0:00:20.5]} 31... Rxc5 {[%clk 0:00:03.5]}
32. Kg2 {[%clk 0:00:12.4]} 32... Bxe5 {[%clk 0:00:03.7]} 33. Nxe5 {[%clk
0:00:12.4]} 33... Rxe5 {[%clk 0:00:04.6]} 34. Kf3 {[%clk 0:00:12.4]} 34... Kg7
{[%clk 0:00:04.3]} 35. Bc2 {[%clk 0:00:11.8]} 35... Rc5 {[%clk 0:00:03.9]} 36.
Bd3 {[%clk 0:00:11.2]} 36... e5 {[%clk 0:00:04]} 37. Rb8 {[%clk 0:00:09.8]}
37... Ne6 {[%clk 0:00:04.4]} 38. Ke3 {[%clk 0:00:08.5]} 38... Kf6 {[%clk
0:00:02]} 39. Rb7 {[%clk 0:00:08.1]} 39... Rd5 {[%clk 0:00:01.5]} 40. Rxb5
{[%clk 0:00:04.2]} 40... Rd6 {[%clk 0:00:01.7]} 41. a4 {[%clk 0:00:03.8]} 41...
Nd4 {[%clk 0:00:01.2]} 42. Rb8 {[%clk 0:00:04.1]} 1-0

[Event "*** SCC Grand Prix: Titled Tuesday Blitz"]
[Site "Chess.com"]
[Date "2020.08.11"]
[Round "3"]
[White "chenxiaoyuer"]
[Black "Spriteball"]
[Result "1-0"]
[WhiteElo "2472"]
[BlackElo "2074"]
[TimeControl "180+1"]
[EndTime "10:29:56 PDT"]
[Termination "chenxiaoyuer won on time"]

1. e4 {[%clk 0:03:00.9]} 1... e5 {[%clk 0:02:59.7]} 2. Nf3 {[%clk 0:03:00.9]}
2... Nc6 {[%clk 0:03:00]} 3. Bb5 {[%clk 0:03:01.1]} 3... a6 {[%clk 0:03:00.3]}
4. Ba4 {[%clk 0:03:01.1]} 4... Nf6 {[%clk 0:03:00.3]} 5. d3 {[%clk 0:03:01.2]}
5... b5 {[%clk 0:02:59.3]} 6. Bb3 {[%clk 0:03:01.3]} 6... Be7 {[%clk 0:02:59.7]}
7. O-O {[%clk 0:03:01]} 7... O-O {[%clk 0:02:59.9]} 8. Bd5 {[%clk 0:02:59.3]}
8... Nxd5 {[%clk 0:02:59.2]} 9. exd5 {[%clk 0:03:00.2]} 9... Nd4 {[%clk
0:02:59.1]} 10. Nxe5 {[%clk 0:02:58]} 10... Bd6 {[%clk 0:02:59.3]} 11. Nf3
{[%clk 0:02:57.4]} 11... Qf6 {[%clk 0:02:58.8]} 12. Nbd2 {[%clk 0:02:53.6]}
12... Bb7 {[%clk 0:02:57.2]} 13. c4 {[%clk 0:02:51.6]} 13... bxc4 {[%clk
0:02:45.2]} 14. dxc4 {[%clk 0:02:45.6]} 14... c6 {[%clk 0:02:33.9]} 15. Nxd4
{[%clk 0:01:52]} 15... Qxd4 {[%clk 0:02:32]} 16. dxc6 {[%clk 0:01:50.3]} 16...
Bxc6 {[%clk 0:02:30.6]} 17. Nf3 {[%clk 0:01:49.4]} 17... Qf6 {[%clk 0:02:06.7]}
18. Qd4 {[%clk 0:01:34.1]} 18... Qg6 {[%clk 0:01:54]} 19. Nh4 {[%clk 0:01:04]}
19... Qe6 {[%clk 0:01:47]} 20. Bf4 {[%clk 0:00:59.2]} 20... Bb4 {[%clk
0:01:13.3]} 21. a3 {[%clk 0:00:42.8]} 21... Be7 {[%clk 0:01:11.6]} 22. Rfe1
{[%clk 0:00:24.8]} 22... Bf6 {[%clk 0:01:06]} 23. Rxe6 {[%clk 0:00:11.6]} 23...
Bxd4 {[%clk 0:01:05.2]} 24. Re2 {[%clk 0:00:11.3]} 24... Rfe8 {[%clk 0:01:02.3]}
25. Rae1 {[%clk 0:00:10.6]} 25... Rxe2 {[%clk 0:00:59.7]} 26. Rxe2 {[%clk
0:00:11.5]} 26... f6 {[%clk 0:00:58.3]} 27. Nf5 {[%clk 0:00:11.4]} 27... Bc5
{[%clk 0:00:56.2]} 28. Bd6 {[%clk 0:00:11.1]} 28... Bxd6 {[%clk 0:00:54.2]} 29.
Nxd6 {[%clk 0:00:12]} 29... a5 {[%clk 0:00:50.6]} 30. f3 {[%clk 0:00:09.7]}
30... Rb8 {[%clk 0:00:49.7]} 31. Kf2 {[%clk 0:00:09.2]} 31... Kf8 {[%clk
0:00:38.6]} 32. Ke1 {[%clk 0:00:07]} 32... g6 {[%clk 0:00:29.5]} 33. Kd1 {[%clk
0:00:06.9]} 33... f5 {[%clk 0:00:24.9]} 34. Kc2 {[%clk 0:00:06.2]} 34... Kg7
{[%clk 0:00:19.6]} 35. Kc3 {[%clk 0:00:06.2]} 35... a4 {[%clk 0:00:17.9]} 36.
Kd4 {[%clk 0:00:05.7]} 36... Kf6 {[%clk 0:00:17.2]} 37. Kc5 {[%clk 0:00:05.5]}
37... Rb3 {[%clk 0:00:15]} 38. Nb5 {[%clk 0:00:05.3]} 38... Bxb5 {[%clk
0:00:12.1]} 39. cxb5 {[%clk 0:00:04.9]} 39... d6+ {[%clk 0:00:11.1]} 40. Kc6
{[%clk 0:00:05.1]} 40... d5 {[%clk 0:00:09.5]} 41. b6 {[%clk 0:00:04.3]} 41...
d4 {[%clk 0:00:09.5]} 42. b7 {[%clk 0:00:04.2]} 42... d3 {[%clk 0:00:09.6]} 43.
Rd2 {[%clk 0:00:04.4]} 43... Ke5 {[%clk 0:00:06.9]} 44. Rxd3 {[%clk 0:00:03.5]}
44... Rxb2 {[%clk 0:00:01.7]} 45. Rd5+ {[%clk 0:00:03.5]} 45... Ke6 {[%clk
0:00:01.2]} 46. Rb5 {[%clk 0:00:03.9]} 1-0

[Event "*** SCC Grand Prix: Titled Tuesday Blitz"]
[Site "Chess.com"]
[Date "2020.08.11"]
[Round "3"]
[White "martynkovaelena"]
[Black "Crazy_girl99"]
[Result "1-0"]
[WhiteElo "2248"]
[BlackElo "2491"]
[TimeControl "180+1"]
[EndTime "10:29:57 PDT"]
[Termination "martynkovaelena won by resignation"]

1. d4 {[%clk 0:02:59.6]} 1... d5 {[%clk 0:02:58.4]} 2. Nf3 {[%clk 0:02:57.8]}
2... Nf6 {[%clk 0:02:58.2]} 3. c4 {[%clk 0:02:58]} 3... e6 {[%clk 0:02:58.2]} 4.
g3 {[%clk 0:02:58]} 4... dxc4 {[%clk 0:02:56.8]} 5. Bg2 {[%clk 0:02:58]} 5... a6
{[%clk 0:02:57.3]} 6. O-O {[%clk 0:02:56.7]} 6... Nc6 {[%clk 0:02:57.4]} 7. e3
{[%clk 0:02:43.4]} 7... Rb8 {[%clk 0:02:50.5]} 8. Qe2 {[%clk 0:02:40.9]} 8... b5
{[%clk 0:02:50.2]} 9. b3 {[%clk 0:02:41.4]} 9... cxb3 {[%clk 0:02:46.3]} 10.
axb3 {[%clk 0:02:41.7]} 10... Bb7 {[%clk 0:02:43.7]} 11. Bb2 {[%clk 0:02:37]}
11... Be7 {[%clk 0:02:38]} 12. Rc1 {[%clk 0:02:36]} 12... O-O {[%clk 0:02:36.1]}
13. Nbd2 {[%clk 0:02:31]} 13... Nb4 {[%clk 0:02:34.9]} 14. Ne5 {[%clk
0:02:21.6]} 14... Bxg2 {[%clk 0:02:22.6]} 15. Kxg2 {[%clk 0:02:21.9]} 15... Bd6
{[%clk 0:02:04.3]} 16. Ndf3 {[%clk 0:02:02.1]} 16... Nd7 {[%clk 0:01:49.9]} 17.
Nc6 {[%clk 0:01:56.2]} 17... Nxc6 {[%clk 0:01:49.1]} 18. Rxc6 {[%clk 0:01:56.8]}
18... Re8 {[%clk 0:01:37.1]} 19. Rcxa6 {[%clk 0:01:45.1]} 19... e5 {[%clk
0:01:23.5]} 20. dxe5 {[%clk 0:01:42.3]} 20... Nxe5 {[%clk 0:01:23.5]} 21. Nxe5
{[%clk 0:01:30]} 21... Bxe5 {[%clk 0:01:21.5]} 22. Bxe5 {[%clk 0:01:28.1]} 22...
Rxe5 {[%clk 0:01:22.4]} 23. Qf3 {[%clk 0:01:24.9]} 23... h6 {[%clk 0:00:52.9]}
24. Ra8 {[%clk 0:01:23.2]} 24... Re8 {[%clk 0:00:51.2]} 25. Rxb8 {[%clk
0:01:18.3]} 25... Qxb8 {[%clk 0:00:52.1]} 26. Qc6 {[%clk 0:01:07.7]} 26... Kh7
{[%clk 0:00:14.6]} 27. Rc1 {[%clk 0:00:56.2]} 27... Re7 {[%clk 0:00:14]} 28. Rc5
{[%clk 0:00:48.4]} 28... b4 {[%clk 0:00:13.8]} 29. Rb5 {[%clk 0:00:47.6]} 29...
Qd8 {[%clk 0:00:14.2]} 30. Rxb4 {[%clk 0:00:42.3]} 30... Qd2 {[%clk 0:00:14.8]}
31. Rd4 {[%clk 0:00:29.3]} 31... Qb2 {[%clk 0:00:13.1]} 32. Rd3 {[%clk
0:00:19.8]} 32... g6 {[%clk 0:00:10]} 33. Qc3 {[%clk 0:00:18.5]} 33... Qxc3
{[%clk 0:00:08]} 34. Rxc3 {[%clk 0:00:18.6]} 34... Kg7 {[%clk 0:00:08.9]} 35. f4
{[%clk 0:00:17.4]} 35... h5 {[%clk 0:00:09.3]} 36. Kf3 {[%clk 0:00:17.9]} 36...
Kf6 {[%clk 0:00:09.3]} 37. e4 {[%clk 0:00:18.2]} 37... Rd7 {[%clk 0:00:09.8]}
38. e5+ {[%clk 0:00:18.1]} 38... Ke7 {[%clk 0:00:09.4]} 39. Ke4 {[%clk 0:00:17]}
39... Kd8 {[%clk 0:00:09.5]} 40. h4 {[%clk 0:00:16.9]} 40... Kc8 {[%clk
0:00:09.6]} 41. f5 {[%clk 0:00:17.3]} 41... Rd1 {[%clk 0:00:07.6]} 42. fxg6
{[%clk 0:00:17.1]} 42... fxg6 {[%clk 0:00:08.5]} 43. Kf4 {[%clk 0:00:17.6]}
43... Rd4+ {[%clk 0:00:06.8]} 44. Kg5 {[%clk 0:00:17]} 44... Rd5 {[%clk
0:00:06.9]} 45. Kxg6 {[%clk 0:00:16.6]} 45... Kd7 {[%clk 0:00:07.8]} 46. Kxh5
{[%clk 0:00:16.1]} 46... Rxe5+ {[%clk 0:00:08.1]} 47. Kg6 {[%clk 0:00:16.4]}
47... c5 {[%clk 0:00:08.5]} 48. h5 {[%clk 0:00:16.8]} 48... Kc6 {[%clk 0:00:08]}
49. h6 {[%clk 0:00:17.1]} 49... Re4 {[%clk 0:00:06.9]} 50. h7 {[%clk 0:00:17.1]}
50... Rg4+ {[%clk 0:00:07.5]} 51. Kh5 {[%clk 0:00:16.4]} 1-0

[Event "*** SCC Grand Prix: Titled Tuesday Blitz"]
[Site "Chess.com"]
[Date "2020.08.11"]
[Round "3"]
[White "Yoshikrov"]
[Black "diablanni"]
[Result "0-1"]
[WhiteElo "2137"]
[BlackElo "2335"]
[TimeControl "180+1"]
[EndTime "10:29:58 PDT"]
[Termination "diablanni won on time"]

1. e4 {[%clk 0:03:00.9]} 1... c5 {[%clk 0:02:59.2]} 2. Nf3 {[%clk 0:02:52.1]}
2... Nc6 {[%clk 0:02:58.5]} 3. d4 {[%clk 0:02:52]} 3... cxd4 {[%clk 0:02:56.2]}
4. Nxd4 {[%clk 0:02:51.9]} 4... g6 {[%clk 0:02:55.5]} 5. Nc3 {[%clk 0:02:51.5]}
5... Bg7 {[%clk 0:02:55.1]} 6. Be3 {[%clk 0:02:49.8]} 6... Nf6 {[%clk
0:02:53.9]} 7. Bc4 {[%clk 0:02:41.6]} 7... O-O {[%clk 0:02:53.1]} 8. f3 {[%clk
0:02:37]} 8... Qb6 {[%clk 0:02:51.3]} 9. Bb3 {[%clk 0:02:12.6]} 9... Ng4 {[%clk
0:02:02.3]} 10. fxg4 {[%clk 0:01:35.7]} 10... Bxd4 {[%clk 0:02:01.2]} 11. Bxd4
{[%clk 0:01:34.8]} 11... Qxd4 {[%clk 0:02:00.5]} 12. Qxd4 {[%clk 0:01:34.1]}
12... Nxd4 {[%clk 0:02:01.4]} 13. O-O-O {[%clk 0:01:33.9]} 13... Nc6 {[%clk
0:02:01.8]} 14. h3 {[%clk 0:01:33.3]} 14... Rb8 {[%clk 0:02:00.8]} 15. Nd5
{[%clk 0:01:33]} 15... d6 {[%clk 0:02:00.3]} 16. Rhf1 {[%clk 0:01:32.4]} 16...
Kg7 {[%clk 0:01:56.9]} 17. Ba4 {[%clk 0:01:30]} 17... b5 {[%clk 0:01:55.4]} 18.
Bb3 {[%clk 0:01:25.2]} 18... a5 {[%clk 0:01:52.5]} 19. c3 {[%clk 0:01:25.2]}
19... Be6 {[%clk 0:01:49.7]} 20. Kb1 {[%clk 0:01:13.2]} 20... Bxd5 {[%clk
0:01:48.8]} 21. Bxd5 {[%clk 0:01:07.9]} 21... Ne5 {[%clk 0:01:48.5]} 22. a3
{[%clk 0:01:05.9]} 22... h6 {[%clk 0:01:17.4]} 23. Rd4 {[%clk 0:00:53.1]} 23...
Rfc8 {[%clk 0:01:15.1]} 24. Rfd1 {[%clk 0:00:44.5]} 24... Rb6 {[%clk 0:01:10.5]}
25. Bb3 {[%clk 0:00:38.6]} 25... Rc5 {[%clk 0:01:05.8]} 26. Rd5 {[%clk
0:00:37.7]} 26... Rxd5 {[%clk 0:01:05.3]} 27. Rxd5 {[%clk 0:00:32.8]} 27... Kf6
{[%clk 0:01:05.2]} 28. Kc2 {[%clk 0:00:29.7]} 28... Kg5 {[%clk 0:01:04.9]} 29.
g3 {[%clk 0:00:27.1]} 29... h5 {[%clk 0:01:01.4]} 30. gxh5 {[%clk 0:00:26.6]}
30... gxh5 {[%clk 0:01:01.7]} 31. Kd1 {[%clk 0:00:17.9]} 31... h4 {[%clk
0:01:01.6]} 32. gxh4+ {[%clk 0:00:18.1]} 32... Kxh4 {[%clk 0:01:01.7]} 33. Rd2
{[%clk 0:00:14.6]} 33... Kxh3 {[%clk 0:00:57.3]} 34. Rf2 {[%clk 0:00:14.7]}
34... f6 {[%clk 0:00:53.8]} 35. Be6+ {[%clk 0:00:10.2]} 35... Kg3 {[%clk
0:00:53.4]} 36. Rf5 {[%clk 0:00:07.9]} 36... Rb8 {[%clk 0:00:50.8]} 37. Rh5
{[%clk 0:00:07.5]} 37... Kf3 {[%clk 0:00:45]} 38. Rh7 {[%clk 0:00:07.3]} 38...
Rb7 {[%clk 0:00:43.2]} 39. Bd5 {[%clk 0:00:06.5]} 39... Rc7 {[%clk 0:00:42.4]}
40. Kc2 {[%clk 0:00:06]} 40... b4 {[%clk 0:00:41.4]} 41. axb4 {[%clk 0:00:06]}
41... axb4 {[%clk 0:00:41.4]} 42. Rh3+ {[%clk 0:00:03.6]} 42... Kg4 {[%clk
0:00:41.2]} 43. Rh7 {[%clk 0:00:03.4]} 43... bxc3 {[%clk 0:00:40.6]} 44. bxc3
{[%clk 0:00:04.3]} 44... Ra7 {[%clk 0:00:37.1]} 45. Kb3 {[%clk 0:00:03.6]} 45...
Kf4 {[%clk 0:00:35.6]} 46. Kb4 {[%clk 0:00:02.7]} 46... Nd3+ {[%clk 0:00:34.1]}
47. Kb5 {[%clk 0:00:01.5]} 47... Nc5 {[%clk 0:00:34.5]} 0-1

[Event "*** SCC Grand Prix: Titled Tuesday Blitz"]
[Site "Chess.com"]
[Date "2020.08.11"]
[Round "3"]
[White "penguingm1"]
[Black "Leonid_Starozhilov"]
[Result "1-0"]
[WhiteElo "3004"]
[BlackElo "2698"]
[TimeControl "180+1"]
[EndTime "10:29:59 PDT"]
[Termination "penguingm1 won by resignation"]

1. d4 {[%clk 0:03:00.9]} 1... Nf6 {[%clk 0:02:59]} 2. c4 {[%clk 0:03:00.2]} 2...
g6 {[%clk 0:02:59.5]} 3. f3 {[%clk 0:03:00.2]} 3... Bg7 {[%clk 0:02:59.9]} 4. e4
{[%clk 0:02:59.8]} 4... d6 {[%clk 0:03:00.5]} 5. Nc3 {[%clk 0:02:59.9]} 5... O-O
{[%clk 0:03:00.5]} 6. Nge2 {[%clk 0:03:00.2]} 6... Nc6 {[%clk 0:03:00.8]} 7. Be3
{[%clk 0:03:00.4]} 7... a6 {[%clk 0:03:01.4]} 8. Qd2 {[%clk 0:03:00.8]} 8... Na5
{[%clk 0:03:02]} 9. Nc1 {[%clk 0:02:44.8]} 9... Nd7 {[%clk 0:03:01.6]} 10. Nb3
{[%clk 0:02:32.4]} 10... c5 {[%clk 0:02:58.6]} 11. dxc5 {[%clk 0:01:40.5]} 11...
Nxb3 {[%clk 0:02:57.6]} 12. axb3 {[%clk 0:01:41.4]} 12... dxc5 {[%clk
0:02:37.3]} 13. h4 {[%clk 0:01:18.1]} 13... e6 {[%clk 0:02:02.5]} 14. h5 {[%clk
0:01:14.3]} 14... Qc7 {[%clk 0:02:01.9]} 15. O-O-O {[%clk 0:01:12.5]} 15... b5
{[%clk 0:01:12.8]} 16. Bh6 {[%clk 0:00:49.3]} 16... Bd4 {[%clk 0:00:59]} 17. Ne2
{[%clk 0:00:46]} 17... Be5 {[%clk 0:00:39.4]} 18. hxg6 {[%clk 0:00:32.3]} 18...
hxg6 {[%clk 0:00:23.9]} 19. f4 {[%clk 0:00:27.4]} 19... Bf6 {[%clk 0:00:23.2]}
20. Bxf8 {[%clk 0:00:22.5]} 20... Nxf8 {[%clk 0:00:22.1]} 21. e5 {[%clk
0:00:23.1]} 21... Be7 {[%clk 0:00:14.4]} 22. Qe3 {[%clk 0:00:20.6]} 22... f5
{[%clk 0:00:04.3]} 23. Qh3 {[%clk 0:00:17.2]} 23... Kf7 {[%clk 0:00:04.7]} 24.
Ng1 {[%clk 0:00:11.3]} 24... Bb7 {[%clk 0:00:05.1]} 25. Nf3 {[%clk 0:00:11.7]}
25... Qa5 {[%clk 0:00:03.7]} 26. Bd3 {[%clk 0:00:11.5]} 26... Rd8 {[%clk
0:00:03.6]} 27. Bb1 {[%clk 0:00:08.4]} 27... Rxd1+ {[%clk 0:00:02.8]} 28. Rxd1
{[%clk 0:00:09.3]} 28... bxc4 {[%clk 0:00:03.6]} 29. bxc4 {[%clk 0:00:09.9]}
29... Qb4 {[%clk 0:00:04]} 30. Nd2 {[%clk 0:00:10.3]} 30... Bc6 {[%clk
0:00:03.8]} 31. Rg1 {[%clk 0:00:10.2]} 31... a5 {[%clk 0:00:03.6]} 32. g4 {[%clk
0:00:10.6]} 32... a4 {[%clk 0:00:04]} 33. gxf5 {[%clk 0:00:11.2]} 33... exf5
{[%clk 0:00:04.4]} 34. Qa3 {[%clk 0:00:11]} 34... Qa5 {[%clk 0:00:04.2]} 35. Bc2
{[%clk 0:00:10.8]} 35... Ne6 {[%clk 0:00:04.6]} 36. Qg3 {[%clk 0:00:06.8]} 36...
Nf8 {[%clk 0:00:04.2]} 37. Qc3 {[%clk 0:00:07.1]} 37... Qa6 {[%clk 0:00:03.5]}
38. Nb1 {[%clk 0:00:07.4]} 38... Ne6 {[%clk 0:00:03.7]} 39. Qg3 {[%clk
0:00:07.7]} 39... Nf8 {[%clk 0:00:03.7]} 40. Na3 {[%clk 0:00:08.2]} 40... Bd7
{[%clk 0:00:03.9]} 41. Kb1 {[%clk 0:00:08.3]} 41... Be8 {[%clk 0:00:03.6]} 42.
Bxf5 {[%clk 0:00:05.2]} 42... gxf5 {[%clk 0:00:03.3]} 43. Qg7+ {[%clk
0:00:05.8]} 43... Ke6 {[%clk 0:00:03.8]} 44. Qh6+ {[%clk 0:00:06.4]} 44... Bg6
{[%clk 0:00:03.1]} 45. Rxg6+ {[%clk 0:00:07]} 1-0

[Event "*** SCC Grand Prix: Titled Tuesday Blitz"]
[Site "Chess.com"]
[Date "2020.08.11"]
[Round "3"]
[White "Benjoneliere44"]
[Black "TokChess"]
[Result "0-1"]
[WhiteElo "2577"]
[BlackElo "2394"]
[TimeControl "180+1"]
[EndTime "10:29:59 PDT"]
[Termination "TokChess won by resignation"]

1. e4 {[%clk 0:03:00.9]} 1... c5 {[%clk 0:02:59.1]} 2. Nc3 {[%clk 0:03:00]} 2...
Nc6 {[%clk 0:02:57.6]} 3. g3 {[%clk 0:03:00.9]} 3... g6 {[%clk 0:02:57.4]} 4.
Bg2 {[%clk 0:03:01.8]} 4... Bg7 {[%clk 0:02:58]} 5. d3 {[%clk 0:03:01.9]} 5...
e6 {[%clk 0:02:57.3]} 6. Be3 {[%clk 0:03:01.9]} 6... Nd4 {[%clk 0:02:57.2]} 7.
Qd2 {[%clk 0:03:01.9]} 7... Ne7 {[%clk 0:02:55.7]} 8. Nd1 {[%clk 0:03:02.1]}
8... b6 {[%clk 0:02:49]} 9. c3 {[%clk 0:03:00.2]} 9... Ndc6 {[%clk 0:02:49.2]}
10. Bh6 {[%clk 0:03:00.8]} 10... O-O {[%clk 0:02:17.1]} 11. h4 {[%clk
0:02:56.8]} 11... f6 {[%clk 0:02:17.3]} 12. Bxg7 {[%clk 0:02:55.7]} 12... Kxg7
{[%clk 0:02:17.7]} 13. h5 {[%clk 0:02:56.3]} 13... g5 {[%clk 0:02:15.7]} 14. h6+
{[%clk 0:02:57.2]} 14... Kh8 {[%clk 0:02:14.8]} 15. Ne3 {[%clk 0:02:56.4]} 15...
Ng6 {[%clk 0:02:12.8]} 16. O-O-O {[%clk 0:02:55.4]} 16... Ba6 {[%clk 0:02:08.2]}
17. Ne2 {[%clk 0:02:55.2]} 17... b5 {[%clk 0:02:06.4]} 18. f4 {[%clk 0:02:54.5]}
18... b4 {[%clk 0:02:04.5]} 19. c4 {[%clk 0:02:53.3]} 19... Qe7 {[%clk
0:01:55.8]} 20. Kb1 {[%clk 0:02:48.3]} 20... Rg8 {[%clk 0:01:49.4]} 21. Rdf1
{[%clk 0:02:44.1]} 21... Raf8 {[%clk 0:01:49]} 22. Bf3 {[%clk 0:02:38.7]} 22...
Bb7 {[%clk 0:01:46.7]} 23. Rf2 {[%clk 0:02:21.1]} 23... Qd6 {[%clk 0:01:40.1]}
24. Bh5 {[%clk 0:02:18.9]} 24... Nd4 {[%clk 0:01:35.1]} 25. Rhf1 {[%clk
0:02:14.8]} 25... Nxe2 {[%clk 0:01:33.3]} 26. Qxe2 {[%clk 0:02:12.6]} 26... gxf4
{[%clk 0:01:32.4]} 27. gxf4 {[%clk 0:02:11.2]} 27... Ne7 {[%clk 0:01:22.3]} 28.
Ng4 {[%clk 0:02:00.3]} 28... Qd4 {[%clk 0:01:17.5]} 29. e5 {[%clk 0:01:32.3]}
29... f5 {[%clk 0:01:17.5]} 30. Nf6 {[%clk 0:01:22.8]} 30... Rg3 {[%clk
0:01:16]} 31. Bf3 {[%clk 0:01:21.5]} 31... Bc6 {[%clk 0:01:04]} 32. Bxc6 {[%clk
0:01:19.3]} 32... Nxc6 {[%clk 0:01:04.2]} 33. Rf3 {[%clk 0:01:16.7]} 33... Rg6
{[%clk 0:01:02.6]} 34. Qh2 {[%clk 0:01:02.1]} 34... a5 {[%clk 0:00:56.5]} 35.
Rg3 {[%clk 0:00:59.5]} 35... a4 {[%clk 0:00:38]} 36. Rfg1 {[%clk 0:00:59.2]}
36... Ne7 {[%clk 0:00:17.2]} 37. Qg2 {[%clk 0:00:36.5]} 37... a3 {[%clk
0:00:13.8]} 38. b3 {[%clk 0:00:34.2]} 38... Rxg3 {[%clk 0:00:08]} 39. Nxd7
{[%clk 0:00:09.5]} 39... Rxg2 {[%clk 0:00:06.4]} 40. Rxg2 {[%clk 0:00:10.4]}
40... Qxd3+ {[%clk 0:00:05.2]} 41. Kc1 {[%clk 0:00:10.3]} 41... Qxd7 {[%clk
0:00:05.2]} 42. Rd2 {[%clk 0:00:09.4]} 42... Rd8 {[%clk 0:00:05.8]} 43. Rxd7
{[%clk 0:00:08.9]} 43... Rxd7 {[%clk 0:00:06.4]} 44. Kc2 {[%clk 0:00:09.6]}
44... Ng6 {[%clk 0:00:07]} 45. Kc1 {[%clk 0:00:09.7]} 45... Nxf4 {[%clk
0:00:07.6]} 46. Kc2 {[%clk 0:00:10.4]} 46... Ng6 {[%clk 0:00:08.2]} 47. Kc1
{[%clk 0:00:10.5]} 47... Nxe5 {[%clk 0:00:08.8]} 48. Kc2 {[%clk 0:00:11.4]}
48... f4 {[%clk 0:00:09.4]} 49. Kc1 {[%clk 0:00:12]} 49... f3 {[%clk 0:00:09.9]}
0-1